bitfinex-derivatives/quotes_SOLF0:USTF0_20250331
["timestamp","ask_amount","ask_price","bid_price","bid_amount"]
[1743435037035,26.95963219,127.52,127.45,4.0668]
[1743435037231,0.05792475,127.47,127.45,4.0668]
[1743435037535,0.0557825,127.47,127.45,4.0668]
[1743435037735,26.95963219,127.52,127.45,4.0668]
[1743435038332,7.846,127.47,127.44,32.7]
[1743435038537,26.95963219,127.49,127.44,32.7]
[1743435038730,26.95963219,127.49,127.45,0.05855606]
[1743435038933,0.05643318,127.48,127.45,0.05855606]
[1743435039930,7.8462,127.46,127.45,0.05855606]
[1743435041337,7.8459,127.47,127.45,0.05855606]
[1743435042245,0.05643318,127.48,127.45,0.05855606]
[1743435042641,0.05643318,127.48,127.46,32.7]
[1743435043141,0.05643318,127.48,127.46,40.5459]
[1743435044144,0.05643318,127.48,127.46,32.7]
[1743435044939,0.05643318,127.48,127.45,0.05855606]
[1743435045143,7.8462,127.46,127.45,0.05855606]
[1743435046342,7.8486,127.42,127.41,8.4204]
[1743435046646,26.95963219,127.46,127.39,32.7]
[1743435047040,26.95963219,127.46,127.34,12.5654]
[1743435047241,26.95963219,127.46,127.35,32.7]
[1743435047440,0.06028838,127.41,127.39,7.8502]
[1743435047642,26.95963219,127.46,127.39,32.72]
[1743435047948,26.95963219,127.46,127.41,7.849]
[1743435048247,26.95963219,127.46,127.39,32.72]
[1743435048445,26.95963219,127.49,127.44,7.847]
[1743435048648,26.95963219,127.49,127.43,32.7]
[1743435048836,0.05771732,127.48,127.45,0.05760481]
[1743435049638,7.8462,127.46,127.45,0.05760481]
[1743435049943,26.95963219,127.46,127.43,32.7]
[1743435050142,26.95963219,127.46,127.35,358.0]
[1743435050342,26.95963219,127.46,127.36,8.6397]
[1743435050547,26.95963219,127.43,127.37,32.7]
[1743435050747,26.95963219,127.47,127.39,7.8502]
[1743435051149,0.05702739,127.44,127.37,40.5514]
[1743435051345,26.95963219,127.43,127.38,32.72]
[1743435051744,0.05505339,127.42,127.38,32.72]
[1743435052345,7.8497,127.41,127.38,40.5708]
[1743435052546,0.05505339,127.42,127.38,32.72]
[1743435052949,7.90375339,127.42,127.38,32.72]
[1743435053549,7.8493,127.41,127.39,7.85]
[1743435053848,0.05505339,127.42,127.37,4.2904]
[1743435054849,7.8504,127.4,127.37,4.2904]
[1743435055051,0.05505339,127.42,127.37,4.2904]
[1743435055348,0.05505339,127.42,127.36,37.0587]
[1743435055550,26.95963219,127.4,127.36,37.0587]
[1743435055947,0.05388256,127.39,127.36,37.0587]
[1743435056144,7.8517,127.37,127.33,4.1676]
[1743435056349,26.95963219,127.4,127.33,8.2821]
[1743435056545,7.90459115,127.36,127.33,8.2821]
[1743435057145,0.05199115,127.36,127.33,8.2821]
[1743435057351,0.05199115,127.36,127.34,7.8533]
[1743435057554,0.05199115,127.36,127.33,8.2821]
[1743435057742,7.90469115,127.36,127.33,8.2821]
[1743435057945,7.90469115,127.36,127.33,16.136]
[1743435058450,7.8536,127.34,127.33,8.2821]
[1743435059044,7.8536,127.34,127.33,4.1145]
[1743435059554,0.05199115,127.36,127.33,4.1145]
[1743435059555,7.8532,127.35,127.33,4.1145]
[1743435059951,7.90459115,127.36,127.33,4.1145]
[1743435060149,0.05199115,127.36,127.33,4.1145]
[1743435060354,26.95963219,127.4,127.33,4.1145]
[1743435061053,7.851,127.39,127.35,7.8529]
[1743435061348,7.851,127.39,127.36,32.72]
[1743435061555,0.05533557,127.38,127.36,40.62257388]
[1743435061752,7.90653557,127.38,127.36,32.77027388]
[1743435062253,0.05533557,127.38,127.36,32.77027388]
[1743435062658,7.8517,127.37,127.36,32.77027388]
[1743435065157,7.8517,127.37,127.36,0.05027388]
[1743435065860,24.85299671,127.38,127.36,0.05027388]
[1743435066060,17.00139671,127.38,127.36,0.05027388]
[1743435066255,17.00139671,127.38,125.09,112.54029749]
[1743435066256,7.8552,127.32,127.29,365.8564]
[1743435066459,16.94606114,127.35,127.3,8.093]
[1743435066663,16.94606114,127.35,127.3,40.813]
[1743435067055,16.94606114,127.33,127.27,4.1894]
[1743435067256,16.94606114,127.31,127.26,36.8084]
[1743435067453,17.00532931,127.31,127.26,36.8084]
[1743435067656,16.94606114,127.27,127.24,8.194]
[1743435067857,7.8591,127.25,127.24,8.194]
[1743435068059,0.05717755,127.27,127.24,8.194]
[1743435068259,27.14852366,127.32,127.24,8.194]
[1743435068969,7.8591,127.26,127.24,8.194]
[1743435069260,0.05187782,127.26,127.24,8.25381491]
[1743435070261,27.14852366,127.29,127.24,8.25381491]
[1743435070469,32.74,127.32,127.24,8.25381491]
[1743435070667,27.14852366,127.33,127.24,8.194]
[1743435071461,0.05529969,127.3,127.27,0.05606143]
[1743435072065,32.74,127.35,127.27,32.79606143]
[1743435072265,309.66852366,127.36,127.27,32.74]
[1743435072461,309.66852366,127.36,127.3,7.8557]
[1743435072770,309.66852366,127.36,127.27,32.74]
[1743435073166,0.05544259,127.33,127.3,0.04954369]
[1743435074073,7.8552,127.32,127.3,0.04954369]
[1743435074667,7.8554,127.31,127.3,0.04954369]
[1743435074869,0.05544259,127.33,127.3,0.04954369]
[1743435075268,0.05544259,127.33,127.31,7.8551]
[1743435075866,7.90984259,127.33,127.31,7.8551]
[1743435076273,7.90984259,127.33,127.3,7.90524369]
[1743435076674,7.90984259,127.33,127.3,0.04954369]
[1743435077476,0.05544259,127.33,127.31,7.855]
[1743435077676,0.05544259,127.33,127.3,0.04954369]
[1743435078067,27.20396625,127.33,127.3,0.04954369]
[1743435078371,0.05544259,127.33,127.3,0.04954369]
[1743435078576,7.90994259,127.33,127.3,7.90554369]
[1743435078873,282.775,127.42,127.3,0.04954369]
[1743435079077,27.14852366,127.38,127.3,4.2495]
[1743435079277,7.8532,127.35,127.32,7.8545]
[1743435079476,27.14852366,127.38,127.33,32.74]
[1743435079876,27.14852366,127.41,127.33,32.74]
[1743435080178,0.05813825,127.37,127.34,0.06024491]
[1743435080771,7.91013825,127.37,127.34,0.06024491]
[1743435080978,0.05813825,127.37,127.34,0.06024491]
[1743435081678,27.14852366,127.35,127.3,4.2495]
[1743435081883,7.8554,127.31,127.3,4.2495]
[1743435082174,27.14852366,127.32,127.25,32.74]
[1743435082371,7.8563,127.3,127.26,8.2313]
[1743435082770,27.14852366,127.35,127.26,8.2313]
[1743435082976,0.05065506,127.29,127.27,0.05552071]
[1743435083178,0.05105922,127.29,127.26,16.0895]
[1743435083372,0.05105922,127.29,127.27,0.05090167]
[1743435084074,0.05105922,127.29,127.27,4.14550167]
[1743435085083,27.14852366,127.35,127.27,4.14550167]
[1743435085284,27.14852366,127.35,127.27,4.0946]
[1743435085585,27.14852366,127.35,127.27,11.9523]
[1743435085880,7.8558,127.31,127.27,11.9523]
[1743435086080,0.05844688,127.3,127.28,7.8568]
[1743435086279,27.14852366,127.35,127.29,32.74]
[1743435086781,27.14852366,127.35,127.29,40.5963]
[1743435086988,27.14852366,127.38,127.29,32.74]
[1743435087282,7.8545,127.33,127.29,32.74]
[1743435087481,0.05366264,127.35,127.32,0.05186042]
[1743435087676,0.05961573,127.35,127.32,0.05186042]
[1743435087877,0.05961573,127.35,127.33,32.74]
[1743435088076,27.14852366,127.38,127.33,36.9399]
[1743435088684,7.8536,127.34,127.33,36.9399]
[1743435089685,0.05678721,127.35,127.33,36.9399]
[1743435090079,309.78852366,127.42,127.33,36.9399]
[1743435090283,27.14852366,127.45,127.33,36.9399]
[1743435090474,7.8502,127.4,127.37,7.8512]
[1743435090678,27.14852366,127.45,127.38,32.74]
[1743435090886,27.14852366,127.42,127.38,32.74]
[1743435091086,7.8505,127.39,127.38,32.74]
[1743435091586,0.05939417,127.41,127.38,32.74]
[1743435091788,7.8505,127.39,127.38,32.74]
[1743435093180,0.05939417,127.41,127.37,0.0569342]
[1743435093380,27.14852366,127.39,127.37,0.0569342]
[1743435093580,27.14852366,127.39,127.33,4.1999]
[1743435093788,7.8536,127.34,127.33,4.1999]
[1743435093984,27.14852366,127.37,127.32,32.74]
[1743435094384,7.8542,127.33,127.32,32.74]
[1743435094584,27.14852366,127.37,127.32,32.74]
[1743435094785,0.05812539,127.34,127.32,32.74]
[1743435095288,0.05812539,127.34,127.33,7.8542]
[1743435095485,27.14852366,127.4,127.32,36.7201]
[1743435096187,7.852,127.37,127.32,36.7201]
[1743435096389,7.852,127.37,127.34,7.8533]
[1743435096585,0.05670606,127.36,127.33,0.05448794]
[1743435096986,0.05670606,127.36,127.34,7.8536]
[1743435097390,7.90920606,127.36,127.34,7.8536]
[1743435097589,0.05670606,127.36,127.33,0.05448794]
[1743435097791,7.8536,127.34,127.33,0.05448794]
[1743435098795,27.14852366,127.34,127.26,32.72]
[1743435099192,7.8568,127.29,127.26,40.5782]
[1743435099396,27.14852366,127.34,127.26,32.72]
[1743435099596,8.4866,127.33,127.26,32.72]
[1743435099796,7.8576,127.28,127.26,32.72]
[1743435100195,7.91033993,127.28,127.26,32.77049386]
[1743435100395,0.05273993,127.28,127.26,40.62899386]
[1743435100788,0.05273993,127.28,127.26,32.77049386]
[1743435100991,0.05273993,127.28,127.26,40.62869386]
[1743435101396,7.8579,127.27,127.26,0.05049386]
[1743435101592,0.05273993,127.28,127.26,0.05049386]
[1743435101889,7.8579,127.27,127.26,0.05049386]
[1743435102095,0.05273993,127.28,127.26,0.05049386]
[1743435103102,0.05273993,127.28,127.27,32.74]
[1743435103396,35.63512366,127.33,127.27,32.74]
[1743435103397,7.8545,127.33,127.27,32.74]
[1743435103795,7.8545,127.33,127.3,7.8557]
[1743435103997,27.14852366,127.36,127.27,32.74]
[1743435104399,0.05112346,127.33,127.3,0.05604127]
[1743435105196,7.90542346,127.33,127.3,32.79604127]
[1743435105395,0.05112346,127.33,127.3,32.79604127]
[1743435106300,7.8552,127.32,127.3,32.79604127]
[1743435106901,0.05112346,127.33,127.3,32.79604127]
[1743435108202,309.74852366,127.4,127.31,8.5154]
[1743435108600,7.8517,127.38,127.31,8.5154]
[1743435108792,309.74852366,127.4,127.31,8.5154]
[1743435109298,0.05021804,127.37,127.35,7.8527]
[1743435109502,0.05021804,127.37,127.36,32.74]
[1743435109904,7.90191804,127.37,127.36,32.74]
[1743435111311,7.853,127.35,127.34,0.05452068]
[1743435113794,7.8554,127.31,127.3,32.74]
[1743435114601,27.14852366,127.34,127.27,4.0015]
[1743435114794,27.14852366,127.34,127.26,40.5983]
[1743435114998,0.05780919,127.32,127.29,0.05282216]
[1743435116201,0.05780919,127.32,127.3,32.74]
[1743435117401,7.91300919,127.32,127.3,32.74]
[1743435117806,0.05780919,127.32,127.3,40.5956]
[1743435118007,0.05780919,127.32,127.3,32.74]
[1743435118400,7.91290919,127.32,127.3,32.74]
[1743435118601,0.05780919,127.32,127.3,32.74]
[1743435119000,7.8554,127.31,127.3,32.74]
[1743435119905,0.05780919,127.32,127.29,0.05282216]
[1743435120507,7.8557,127.31,127.29,0.05282216]
[1743435122105,7.91290919,127.32,127.29,7.90942216]
[1743435122414,0.05780919,127.32,127.29,0.05282216]
[1743435123009,0.05780919,127.32,127.29,7.90942216]
[1743435123199,7.91280919,127.32,127.29,7.90942216]
[1743435123401,0.05780919,127.32,127.29,0.05282216]
[1743435123602,0.05780919,127.32,127.3,7.8556]
[1743435123805,7.91310919,127.32,127.29,4.11252216]
[1743435124004,0.05780919,127.32,127.29,4.11252216]
[1743435124410,7.8554,127.31,127.29,4.11252216]
[1743435124713,0.05780919,127.32,127.29,4.11252216]
[1743435124916,7.856,127.3,127.29,0.05282216]
[1743435125808,7.8556,127.31,127.29,0.05282216]
[1743435126207,7.8556,127.31,127.29,7.90922216]
[1743435126409,7.91290919,127.32,127.29,7.90922216]
[1743435126606,0.05780919,127.32,127.3,32.74]
[1743435126811,37.1059,127.39,127.3,32.74]
[1743435127016,37.0195,127.39,127.32,7.8545]
[1743435127311,37.0195,127.39,127.3,32.74]
[1743435127515,27.14852366,127.36,127.3,32.74]
[1743435127911,7.91304475,127.34,127.32,0.05102363]
[1743435128116,0.05884475,127.34,127.32,0.05102363]
[1743435128307,27.14852366,127.33,127.25,8.4459]
[1743435128512,27.14852366,127.3,127.2,27.14852366]
[1743435128714,27.14852366,127.3,127.21,68.65751399]
[1743435128915,27.14852366,127.3,127.21,76.53881399]
[1743435129110,4.2913,127.29,127.21,76.53881399]
[1743435129307,4.2913,127.29,127.21,76.55881399]
[1743435129511,7.8591,127.25,127.24,0.05396287]
[1743435131512,7.861,127.22,127.21,31.57101399]
[1743435132519,59.90852366,127.27,127.18,32.74]
[1743435132723,0.05189499,127.23,127.2,0.05572682]
[1743435133610,0.05189499,127.23,127.2,7.91782682]
[1743435133819,0.05189499,127.23,127.2,0.05572682]
[1743435134208,7.8595,127.25,127.21,7.8612]
[1743435134415,7.8595,127.25,127.22,37.022]
[1743435134622,7.8572,127.29,127.22,37.022]
[1743435134817,31.10442366,127.36,127.23,27.14852366]
[1743435135021,10.80725849,127.37,127.26,27.14852366]
[1743435135214,0.04968311,127.31,127.28,0.054278]
[1743435135413,27.14852366,127.36,127.27,37.0457]
[1743435135618,7.8563,127.3,127.28,4.282]
[1743435136015,27.14852366,127.36,127.28,4.282]
[1743435136220,7.8558,127.31,127.28,4.282]
[1743435136419,0.05035147,127.31,127.28,4.33683559]
[1743435136810,7.8566,127.3,127.28,4.33683559]
[1743435137012,0.05035147,127.31,127.28,4.33683559]
[1743435137518,7.8567,127.29,127.28,4.33683559]
[1743435137717,0.05035147,127.31,127.28,4.33683559]
[1743435138625,7.90625147,127.31,127.28,4.33683559]
[1743435138926,0.05035147,127.31,127.28,4.33683559]
[1743435139425,8.4469,127.39,127.28,31.48535925]
[1743435139725,7.8534,127.35,127.31,7.8551]
[1743435139923,7.8534,127.35,127.32,32.76]
[1743435140423,7.8526,127.36,127.32,40.6146]
[1743435140623,0.05815356,127.35,127.32,32.81755356]
[1743435141017,4.252,127.42,127.32,32.81755356]
[1743435141216,4.1949,127.44,127.32,32.76]
[1743435141415,64.14052366,127.47,127.34,27.14852366]
[1743435141615,64.14052366,127.47,127.35,4.3564]
[1743435141828,64.14052366,127.47,127.36,32.74]
[1743435142324,0.0498508,127.43,127.4,0.05731914]
[1743435143123,0.0498508,127.43,127.4,32.79731914]
[1743435145522,27.14852366,127.41,127.36,4.1013]
[1743435146426,27.14852366,127.38,127.32,32.72]
[1743435146628,27.14852366,127.38,127.3,40.9256]
[1743435146823,0.05568611,127.36,127.34,0.05239742]
[1743435147218,27.14852366,127.35,127.3,36.8795]
[1743435147420,27.14852366,127.35,127.27,4.0461]
[1743435147624,27.14852366,127.35,127.27,36.7661]
[1743435147825,4.3413,127.39,127.27,394.7661]
[1743435148133,44.06539874,127.39,127.27,438.83149874]
[1743435148326,44.06539874,127.39,127.32,0.05299925]
[1743435148523,44.06539874,127.39,127.33,32.72]
[1743435148725,0.04989013,127.37,127.33,32.72]
[1743435148921,0.04989013,127.37,127.35,0.05224692]
[1743435150129,7.8523,127.36,127.35,0.05224692]
[1743435150725,0.04989013,127.37,127.35,0.05224692]
[1743435152933,7.8523,127.36,127.35,0.05224692]
[1743435153132,51.91769874,127.36,127.35,0.05224692]
[1743435155133,7.8523,127.36,127.35,0.05224692]
[1743435156829,7.90169013,127.37,127.35,0.05224692]
[1743435157030,44.06539874,127.43,127.35,0.05224692]
[1743435157224,44.06539874,127.43,127.35,4.17494692]
[1743435157431,7.8515,127.38,127.35,12.02754692]
[1743435157928,7.8509,127.39,127.35,4.17494692]
[1743435158233,0.05310091,127.38,127.36,7.852]
[1743435158432,0.05310091,127.38,127.35,4.17494692]
[1743435158626,0.05310091,127.38,127.35,12.02744692]
[1743435158831,0.05310091,127.38,127.35,0.05224692]
[1743435159034,7.8523,127.36,127.35,0.05224692]
[1743435163034,0.05310091,127.38,127.35,0.05224692]
[1743435163625,7.8517,127.37,127.35,0.05224692]
[1743435164939,7.8517,127.37,127.35,7.90514692]
[1743435165137,7.8523,127.36,127.35,0.05224692]
[1743435165431,0.05310091,127.38,127.35,7.90494692]
[1743435165635,0.05310091,127.38,127.35,0.05224692]
[1743435166138,7.8517,127.37,127.35,0.05224692]
[1743435166334,0.05310091,127.38,127.35,0.05224692]
[1743435166739,7.8523,127.36,127.35,0.05224692]
[1743435167540,51.91739874,127.37,127.35,0.05224692]
[1743435167740,0.05310091,127.38,127.35,0.05224692]
[1743435167938,0.05310091,127.38,127.35,7.90484692]
[1743435168541,0.05310091,127.38,127.35,0.05224692]
[1743435168740,7.8523,127.36,127.35,0.05224692]
[1743435170442,15.7049,127.36,127.27,4.0308]
[1743435170746,27.12578139,127.33,127.27,32.72]
[1743435170940,27.12578139,127.33,127.24,8.471]
[1743435171337,27.12578139,127.3,127.24,41.191]
[1743435171541,27.1776607,127.3,127.27,0.05956282]
[1743435171946,7.8573,127.28,127.27,0.05956282]
[1743435172942,27.1776607,127.3,127.27,0.05956282]
[1743435173444,0.05187931,127.3,127.27,0.05956282]
[1743435173946,0.05187931,127.3,127.27,7.91716282]
[1743435174145,0.05187931,127.3,127.27,0.05956282]
[1743435174850,0.05187931,127.3,127.28,32.72]
[1743435175146,27.12578139,127.36,127.28,32.72]
[1743435175446,27.12578139,127.36,127.31,7.8551]
[1743435175844,34.97818139,127.36,127.33,7.8541]
[1743435176042,27.12578139,127.36,127.33,7.90869503]
[1743435176242,35.02843884,127.36,127.33,7.90869503]
[1743435176944,27.17603884,127.36,127.34,7.8535]
[1743435177147,27.17603884,127.36,127.33,0.05459503]
[1743435177942,7.8534,127.35,127.33,0.05459503]
[1743435178344,27.17603884,127.36,127.33,0.05459503]
[1743435178542,7.8535,127.35,127.33,0.05459503]
[1743435178746,27.17603884,127.36,127.33,0.05459503]
[1743435179140,7.8536,127.34,127.33,0.05459503]
[1743435181144,0.05025745,127.36,127.33,32.77459503]
[1743435182045,7.8514,127.38,127.35,7.8527]
[1743435182746,7.8517,127.37,127.34,7.8533]
[1743435182947,27.12578139,127.42,127.33,32.72]
[1743435183249,7.91075332,127.37,127.34,0.05403975]
[1743435183547,27.12578139,127.39,127.33,32.72]
[1743435183746,0.0549385,127.37,127.34,0.05027329]
[1743435184650,27.12578139,127.36,127.34,0.05027329]
[1743435184842,27.12578139,127.36,127.3,4.0135]
[1743435185445,59.84578139,127.4,127.3,4.0135]
[1743435185641,59.84578139,127.4,127.32,7.8545]
[1743435185852,59.84578139,127.4,127.3,4.0135]
[1743435186053,27.18441077,127.37,127.35,0.05788515]
[1743435186551,0.05862938,127.37,127.35,0.05788515]
[1743435187153,7.91072938,127.37,127.35,0.05788515]
[1743435187353,0.05862938,127.37,127.35,0.05788515]
[1743435187852,7.8523,127.36,127.35,0.05788515]
[1743435189849,27.12578139,127.36,127.3,4.0135]
[1743435190056,68.08878139,127.36,127.3,4.0135]
[1743435190255,59.84578139,127.36,127.3,4.0135]
[1743435190556,27.12578139,127.36,127.3,4.0135]
[1743435190754,7.8534,127.35,127.32,7.8545]
[1743435190958,0.05447805,127.34,127.32,0.05649345]
[1743435191852,0.05447805,127.34,127.28,32.72]
[1743435192851,0.05447805,127.34,127.28,59.84578139]
[1743435193057,0.05447805,127.34,127.33,7.8542]
[1743435193257,0.05447805,127.34,127.33,40.5742]
[1743435193450,7.852,127.37,127.34,7.8534]
[1743435193652,35.36878139,127.4,127.33,32.72]
[1743435194155,7.8536,127.34,127.33,32.72]
[1743435194661,7.8542,127.33,127.32,0.05087815]
[1743435195861,7.854,127.34,127.32,0.05087815]
[1743435196259,0.05542479,127.35,127.32,0.05087815]
[1743435196460,7.8536,127.34,127.32,0.05087815]
[1743435196655,0.05542479,127.35,127.32,0.05087815]
[1743435196963,0.05542479,127.35,127.32,7.90567815]
[1743435197352,0.05542479,127.35,127.32,0.05087815]
[1743435197651,0.05542479,127.35,127.33,32.72]
[1743435198556,0.05542479,127.35,127.33,40.574]
[1743435199064,0.05542479,127.35,127.33,32.72]
[1743435199762,7.8536,127.34,127.33,32.72]
[1743435200462,7.8542,127.33,127.32,0.05087815]
[1743435202262,7.8567,127.29,127.27,36.8156]
[1743435202463,7.8567,127.29,127.27,4.0956]
[1743435202661,7.8567,127.29,127.27,36.8156]
[1743435202962,27.12578139,127.35,127.27,36.8156]
[1743435203363,0.04961906,127.32,127.3,7.91428883]
[1743435204461,27.12578139,127.38,127.31,32.72]
[1743435204661,27.12578139,127.38,127.31,36.9334]
[1743435204853,34.97658139,127.39,127.31,36.9334]
[1743435205055,10.84572096,127.41,127.31,64.05918139]
[1743435205766,10.84572096,127.41,127.35,0.05283137]
[1743435205963,4.27842096,127.41,127.39,7.8502]
[1743435206767,119.30293063,127.42,127.4,32.7]
[1743435207266,0.05691934,127.41,127.4,32.7]
[1743435209663,27.12578139,127.48,127.4,32.7]
[1743435209870,7.8465,127.46,127.42,7.8486]
[1743435210470,7.8458,127.47,127.4,59.82578139]
[1743435210861,0.0528302,127.45,127.43,7.8476]
[1743435211067,0.0528302,127.45,127.44,32.7]
[1743435213161,7.8996302,127.45,127.44,32.7]
[1743435213567,7.848,127.43,127.42,0.05938049]
[1743435213965,0.0528302,127.45,127.42,0.05938049]
[1743435214172,7.9000302,127.45,127.42,0.05938049]
[1743435214467,0.0528302,127.45,127.42,0.05938049]
[1743435214667,7.8474,127.44,127.42,0.05938049]
[1743435215062,0.0528302,127.45,127.42,0.05938049]
[1743435215258,0.0528302,127.45,127.43,7.8477]
[1743435215662,0.0528302,127.45,127.42,0.05938049]
[1743435216359,7.8479,127.44,127.42,0.05938049]
[1743435216765,0.0528302,127.45,127.42,0.05938049]
[1743435217065,27.17861159,127.45,127.42,0.05938049]
[1743435217269,7.848,127.43,127.42,8.049e-05]
[1743435217664,59.85861159,127.45,127.38,32.68]
[1743435217871,7.8505,127.39,127.38,32.68]
[1743435218368,7.8505,127.39,127.36,3.9713]
[1743435218369,7.8505,127.39,127.36,11.8236]
[1743435218570,7.8505,127.39,127.36,44.5036]
[1743435218769,0.05658269,127.39,127.36,36.70836451]
[1743435219669,32.68,127.45,127.36,36.70836451]
[1743435219670,59.80578139,127.45,127.36,36.70836451]
[1743435219867,59.80578139,127.45,127.36,36.6513]
[1743435220075,7.8489,127.42,127.39,7.8501]
[1743435220369,27.12578139,127.45,127.4,32.68]
[1743435220764,0.0583645,127.44,127.41,0.05174894]
[1743435220965,0.0583645,127.44,127.4,32.68]
[1743435221166,0.0583645,127.44,127.43,7.848]
[1743435221473,282.66,127.5,127.41,8.51612319]
[1743435221674,282.66,127.5,127.41,8.4574]
[1743435221972,7.8459,127.47,127.44,7.8473]
[1743435222174,7.8459,127.47,127.44,40.5273]
[1743435222368,7.845,127.48,127.44,32.68]
[1743435222674,0.05532975,127.47,127.44,32.7342519]
[1743435223271,0.05532975,127.47,127.45,7.8464]
[1743435223674,7.90102975,127.47,127.44,40.5813519]
[1743435224473,0.05532975,127.47,127.44,32.7342519]
[1743435225574,7.8465,127.46,127.44,32.7342519]
[1743435225775,0.05532975,127.47,127.44,32.7342519]
[1743435226768,0.05532975,127.47,127.45,7.8467]
[1743435227274,0.05532975,127.47,127.44,32.7342519]
[1743435227873,7.8432,127.51,127.48,7.8447]
[1743435228073,27.12578139,127.54,127.48,32.68]
[1743435228373,282.46,127.56,127.48,32.68]
[1743435228873,7.8434,127.51,127.48,40.5247]
[1743435229075,0.05761346,127.53,127.51,0.05793754]
[1743435229274,0.05761346,127.53,127.48,32.68]
[1743435229475,0.05761346,127.53,127.51,0.04981174]
[1743435229879,7.89981346,127.53,127.51,0.04981174]
[1743435230476,0.05761346,127.53,127.51,0.04981174]
[1743435232474,27.12578139,127.6,127.52,32.66]
[1743435232879,7.8391,127.58,127.55,7.8403]
[1743435233080,286.5753,127.62,127.53,4.0803]
[1743435233381,286.5753,127.62,127.56,7.84]
[1743435233574,286.5753,127.62,127.56,32.66]
[1743435233773,0.05437335,127.59,127.56,32.71394757]
[1743435233976,7.8388,127.58,127.56,32.71394757]
[1743435234177,0.05437335,127.59,127.56,32.71394757]
[1743435234480,2059.00212901,127.73,127.58,7.8383]
[1743435234481,7.837,127.61,127.58,7.8383]
[1743435235175,7.8376,127.6,127.57,16.2081]
[1743435235575,27.12578139,127.65,127.57,8.42410164]
[1743435235878,7.8378,127.6,127.57,16.2082]
[1743435236279,7.8378,127.6,127.57,16.25868106]
[1743435236484,7.8382,127.59,127.57,8.41938106]
[1743435236675,27.12578139,127.65,127.57,4.12398106]
[1743435236881,7.8388,127.58,127.57,0.05353907]
[1743435237078,27.12578139,127.62,127.56,32.66]
[1743435237279,27.12578139,127.62,127.56,32.71030019]
[1743435237677,4.1163,127.61,127.56,32.71030019]
[1743435237878,7.8388,127.58,127.56,32.71030019]
[1743435238071,4.1163,127.61,127.56,40.55030019]
[1743435238276,31.16238139,127.62,127.56,40.55030019]
[1743435238471,31.16238139,127.62,127.56,32.71030019]
[1743435238472,7.8389,127.58,127.56,32.71030019]
[1743435239275,31.16238139,127.62,127.56,32.71030019]
[1743435239684,27.12578139,127.62,127.56,32.71030019]
[1743435239981,7.8385,127.59,127.56,40.55030019]
[1743435240280,7.8385,127.59,127.57,7.8394]
[1743435240481,27.12578139,127.62,127.56,32.71030019]
[1743435240677,39.53838139,127.65,127.57,8.3465]
[1743435241082,39.53838139,127.65,127.6,0.05618986]
[1743435241481,7.837,127.61,127.6,0.05618986]
[1743435241982,7.837,127.61,127.6,8.986e-05]
[1743435242182,27.12578139,127.62,127.56,32.66]
[1743435242578,27.12578139,127.59,127.49,8.3465]
[1743435242783,27.12578139,127.59,127.5,36.9748]
[1743435243187,7.8409,127.55,127.52,7.8422]
[1743435243388,0.05279141,127.56,127.53,0.05654097]
[1743435243686,7.89309141,127.56,127.53,0.05654097]
[1743435243885,0.05279141,127.56,127.54,32.64]
[1743435245586,0.05279141,127.56,127.53,0.05654097]
[1743435245782,7.8413,127.54,127.53,0.05654097]
[1743435247492,7.8434,127.51,127.5,32.62]
[1743435247988,27.12578139,127.56,127.5,32.62]
[1743435248298,27.12578139,127.56,127.5,40.4633]
[1743435248586,0.05456081,127.54,127.52,0.05378565]
[1743435248988,7.8419,127.53,127.52,0.05378565]
[1743435249886,0.05456081,127.54,127.48,40.4849]
[1743435250085,27.12578139,127.56,127.48,32.64]
[1743435250284,15.6814,127.55,127.46,4.0808]
[1743435250489,27.12578139,127.5,127.44,32.64]
[1743435250885,3.9494,127.49,127.4,12.6227]
[1743435251081,27.12578139,127.47,127.46,7.708e-05]
[1743435251391,27.12578139,127.47,127.39,32.62]
[1743435251988,7.847,127.45,127.41,7.8491]
[1743435252182,27.12578139,127.47,127.39,32.62]
[1743435252385,0.05976123,127.44,127.42,0.05207583]
[1743435252688,0.05976123,127.44,127.39,32.62]
[1743435252689,27.18554262,127.44,127.39,32.64]